fUSD/lending_fUSD_20260608
["ID","MTS","AMOUNT","RATE_DAILY","PERIOD"]
[424460168,1780927846000,-671.02146225,0.00025,9]
[424460172,1780927846000,-215.86427702,0.00025,3]
[424460169,1780927846000,-181.64888321,0.00025,2]
[424460173,1780927846000,-496.43652541,0.00025,2]
[424460170,1780927846000,-1571.88,0.00025,7]
[424460171,1780927846000,-215.86427702,0.00025,7]
[424460178,1780927846000,-153.78,0.00025,2]
[424460177,1780927846000,-153.78,0.00025,2]
[424460179,1780927846000,-153.78,0.00025,2]
[424460180,1780927846000,-153.78,0.00025,2]
[424460182,1780927846000,-153.78,0.00025,2]
[424460119,1780927846000,-275.0,0.00024192,2]
[424460181,1780927846000,-153.78,0.00025,2]
[424460167,1780927846000,-800.0,0.00025,9]
[424460164,1780927846000,-273.0,0.00025,2]
[424460174,1780927846000,-764.0100459,0.00025,2]
[424460147,1780927846000,-500.0,0.0002474,2]
[424460153,1780927846000,-2560.48749773,0.00024897,7]
[424460118,1780927846000,-1743.07,0.00024174,2]
[424460117,1780927846000,-1424.53,0.00024174,2]
[424460124,1780927846000,-2682.57183977,0.00024192,2]
[424460135,1780927846000,-160.0,0.0002468,3]
[424460134,1780927846000,-150.0,0.00024658,2]
[424460123,1780927846000,-500.0,0.00024192,2]
[424460128,1780927846000,-3551.6,0.00024324,2]
[424460126,1780927846000,-219.0,0.00024238,2]
[424460130,1780927846000,-500.0,0.00024512,2]
[424460125,1780927846000,-6711.0,0.00024238,2]
[424460127,1780927846000,-150.0,0.000243,2]
[424460132,1780927846000,-174.71,0.00024658,2]
[424460129,1780927846000,-160.0,0.0002436,3]
[424460122,1780927846000,-225.18697532,0.00024192,2]
[424460150,1780927846000,-206.0,0.00024815,2]
[424460131,1780927846000,-5530.0,0.000246,3]
[424460146,1780927846000,-233.5188934,0.0002474,2]
[424460148,1780927846000,-2781.82699784,0.0002474,2]
[424460151,1780927846000,-160.0,0.0002488,3]
[424460144,1780927846000,-151.0,0.0002474,2]
[424460145,1780927846000,-200.0,0.0002474,2]
[424460149,1780927846000,-2047.96,0.00024745,7]
[424460143,1780927846000,-275.0,0.0002474,2]
[424460142,1780927846000,-151.0,0.00024737,7]
[424460140,1780927846000,-159.0,0.000247,15]
[424460136,1780927846000,-2323.0,0.0002468,3]
[424460133,1780927846000,-1000.0,0.00024658,2]
[424460138,1780927846000,-2360.0,0.0002468,3]
[424460226,1780927847000,-151.0,0.00026173,4]
[424460224,1780927847000,-182.03,0.00026027,7]
[424460225,1780927847000,-150.0,0.00026028,2]
[424460221,1780927847000,-8948.0,0.00025969,2]
[424460222,1780927847000,-329.0,0.00025969,2]
[424460223,1780927847000,-550.0,0.00026,2]
[424460216,1780927847000,-500.0,0.00025836,2]
[424460219,1780927847000,-285.0,0.00025928,2]
[424460217,1780927847000,-2991.49051684,0.00025836,2]
[424460218,1780927847000,-161.5,0.00025884,2]
[424460227,1780927847000,-3551.6,0.00026296,2]
[424460230,1780927847000,-152.29803504,0.00026384,4]
[424460228,1780927847000,-153.84603978,0.00026384,4]
[424460220,1780927847000,-500.0,0.00025937,14]
[424460240,1780927847000,-200.0,0.00026456,2]
[424460233,1780927847000,-150.0,0.00026384,4]
[424460229,1780927847000,-150.0,0.00026384,4]
[424460232,1780927847000,-150.0,0.00026384,4]
[424460241,1780927847000,-200.0,0.00026456,2]
[424460231,1780927847000,-169.83658506,0.00026384,4]
[424460235,1780927847000,-275.0,0.00026384,2]
[424460239,1780927847000,-200.0,0.00026456,2]
[424460236,1780927847000,-181.37041115,0.00026384,2]
[424460237,1780927847000,-202.68957881,0.00026384,2]
[424460234,1780927847000,-150.0,0.00026384,4]
[424460238,1780927847000,-200.0,0.00026456,2]
[424460242,1780927847000,-200.0,0.00026456,2]
[424460245,1780927847000,-200.0,0.00026456,2]
[424460246,1780927847000,-300.0,0.00026456,2]
[424460247,1780927847000,-500.0,0.0002648,2]
[424460210,1780927847000,-151.0,0.00025834,2]
[424460189,1780927847000,-151.0,0.00025173,4]
[424460207,1780927847000,-207.23,0.00025814,2]
[424460244,1780927847000,-200.0,0.00026456,2]
[424460188,1780927847000,-500.0,0.00025168,2]
[424460185,1780927847000,-153.78,0.00025,2]
[424460186,1780927847000,-7130.07,0.00025038,7]
[424460187,1780927847000,-2323.0,0.0002512,3]
[424460183,1780927847000,-153.78,0.00025,2]
[424460184,1780927847000,-153.78,0.00025,2]
[424460190,1780927847000,-2000.0,0.00025288,7]
[424460191,1780927847000,-275.0,0.00025288,2]
[424460193,1780927847000,-200.0,0.00025288,2]
[424460195,1780927847000,-500.0,0.00025288,2]
[424460201,1780927847000,-2323.0,0.0002562,3]
[424460192,1780927847000,-151.0,0.00025288,2]
[424460194,1780927847000,-242.15909246,0.00025288,2]
[424460198,1780927847000,-2323.0,0.0002544,3]
[424460197,1780927847000,-5530.0,0.000253,5]
[424460196,1780927847000,-2884.75459676,0.00025288,2]
[424460199,1780927847000,-3555.0,0.000255,2]
[424460203,1780927847000,-7376.46,0.00025786,2]
[424460215,1780927847000,-200.0,0.00025836,2]
[424460214,1780927847000,-251.11897888,0.00025836,2]
[424460213,1780927847000,-153.02949016,0.00025836,2]
[424460204,1780927847000,-13085.93,0.00025786,2]
[424460202,1780927847000,-160.99168148,0.0002569,60]
[424460212,1780927847000,-275.0,0.00025836,2]
[424460211,1780927847000,-295.05457785,0.00025834,2]
[424460209,1780927847000,-621.78829552,0.00025834,2]
[424460208,1780927847000,-500.0,0.00025824,2]
[424460206,1780927847000,-1743.07,0.00025786,2]
[424460205,1780927847000,-1424.53,0.00025786,2]
[424460243,1780927847000,-200.0,0.00026456,2]
[424460200,1780927847000,-1274.0,0.000255,2]
[424460248,1780927847000,-201256.74,0.000266,2]
[424460284,1780927847000,-150.0,0.00027397,2]
[424460283,1780927847000,-500.0,0.00027397,2]
[424460295,1780927847000,-500.0,0.00027397,2]
[424460287,1780927847000,-500.0,0.00027397,2]
[424460288,1780927847000,-150.0,0.00027397,2]
[424460285,1780927847000,-500.0,0.00027397,2]
[424460286,1780927847000,-150.0,0.00027397,2]
[424460291,1780927847000,-500.0,0.00027397,2]
[424460292,1780927847000,-150.0,0.00027397,2]
[424460289,1780927847000,-500.0,0.00027397,2]
[424460293,1780927847000,-500.0,0.00027397,2]
[424460290,1780927847000,-150.0,0.00027397,2]
[424460296,1780927847000,-150.0,0.00027397,2]
[424460299,1780927847000,-500.0,0.00027397,2]
[424460298,1780927847000,-150.0,0.00027397,2]
[424460300,1780927847000,-150.0,0.00027397,2]
[424460301,1780927847000,-500.0,0.00027397,2]
[424460305,1780927847000,-500.0,0.00027397,2]
[424460303,1780927847000,-150.0,0.00027397,2]
[424460308,1780927847000,-500.0,0.00027397,2]
[424460302,1780927847000,-500.0,0.00027397,2]
[424460297,1780927847000,-500.0,0.00027397,2]
[424460304,1780927847000,-500.0,0.00027397,2]
[424460307,1780927847000,-500.0,0.00027397,2]
[424460306,1780927847000,-500.0,0.00027397,2]
[424460310,1780927847000,-500.0,0.00027397,2]
[424460312,1780927847000,-500.0,0.00027397,2]
[424460311,1780927847000,-150.0,0.00027397,2]
[424460250,1780927847000,-151.0,0.0002669,60]
[424460294,1780927847000,-150.0,0.00027397,2]
[424460279,1780927847000,-150.0,0.00027397,2]
[424460309,1780927847000,-150.0,0.00027397,2]
[424460274,1780927847000,-550.7395137,0.00027397,2]
[424460278,1780927847000,-150.0,0.00027397,2]
[424460249,1780927847000,-240.0,0.000266,2]
[424460253,1780927847000,-7130.07,0.00026717,7]
[424460252,1780927847000,-298.5,0.00026713,2]
[424460254,1780927847000,-300.45,0.0002673,2]
[424460256,1780927847000,-230.88489644,0.0002673,2]
[424460266,1780927847000,-160.0,0.0002726,3]
[424460257,1780927847000,-275.0,0.00026932,2]
[424460267,1780927847000,-200.0,0.00027265,2]
[424460258,1780927847000,-500.0,0.00026959,2]
[424460268,1780927847000,-200.0,0.0002727,2]
[424460259,1780927847000,-2323.0,0.0002698,3]
[424460255,1780927847000,-230.88489644,0.0002673,2]
[424460264,1780927847000,-151.0,0.00027173,4]
[424460260,1780927847000,-172.0,0.00027,7]
[424460251,1780927847000,-1571.88,0.000267,7]
[424460262,1780927847000,-2000.0,0.00027127,7]
[424460263,1780927847000,-500.0,0.00027136,2]
[424460271,1780927847000,-200.0,0.00027329,2]
[424460277,1780927847000,-150.0,0.00027397,2]
[424460272,1780927847000,-200.0,0.00027335,2]
[424460276,1780927847000,-150.0,0.00027397,2]
[424460275,1780927847000,-200.0,0.00027397,2]
[424460273,1780927847000,-1199.25,0.00027397,2]
[424460270,1780927847000,-200.0,0.00027329,2]
[424460265,1780927847000,-200.0,0.00027185,2]
[424460282,1780927847000,-150.0,0.00027397,2]
[424460261,1780927847000,-394.0,0.00027091,7]
[424460269,1780927847000,-200.0,0.00027277,2]
[424460281,1780927847000,-150.0,0.00027397,2]
[424460280,1780927847000,-150.0,0.00027397,2]
[424460346,1780927848000,-2520.55347352,0.00027397,2]
[424460353,1780927848000,-39026.78,0.00027397,10]
[424460348,1780927848000,-300.0,0.00027397,2]
[424460355,1780927848000,-1000.0,0.000274,2]
[424460352,1780927848000,-46832.13,0.00027397,10]
[424460347,1780927848000,-1500.0,0.00027397,2]
[424460356,1780927848000,-1000.0,0.000274,2]
[424460349,1780927848000,-528.92,0.00027397,2]
[424460350,1780927848000,-510.05,0.00027397,20]
[424460351,1780927848000,-429.43296756,0.00027397,2]
[424460344,1780927848000,-150.0,0.00027397,2]
[424460354,1780927848000,-150.0,0.00027397,2]
[424460361,1780927848000,-1000.0,0.000274,2]
[424460358,1780927848000,-1000.0,0.000274,2]
[424460359,1780927848000,-1798.55,0.000274,2]
[424460360,1780927848000,-1000.0,0.000274,2]
[424460362,1780927848000,-1000.0,0.000274,2]
[424460363,1780927848000,-1530.76,0.000274,2]
[424460365,1780927848000,-4920.90826675,0.00027465,2]
[424460366,1780927848000,-10265.5628898,0.00027465,2]
[424460367,1780927848000,-1413.85318,0.00027465,7]
[424460364,1780927848000,-2323.0,0.00027445,3]
[424460368,1780927848000,-1413.85318,0.00027465,7]
[424460370,1780927848000,-151.0,0.00027465,7]
[424460345,1780927848000,-275.64436299,0.00027397,2]
[424460380,1780927848000,-172.1673215,0.00027503,2]
[424460357,1780927848000,-1000.0,0.000274,2]
[424460343,1780927848000,-150.0,0.00027397,2]
[424460327,1780927848000,-150.0,0.00027397,2]
[424460339,1780927848000,-150.0,0.00027397,2]
[424460381,1780927848000,-183.12060471,0.00027503,2]
[424460320,1780927848000,-150.0,0.00027397,2]
[424460313,1780927848000,-150.0,0.00027397,2]
[424460314,1780927848000,-500.0,0.00027397,2]
[424460315,1780927848000,-317.63743829,0.00027397,2]
[424460316,1780927848000,-150.0,0.00027397,2]
[424460317,1780927848000,-150.0,0.00027397,2]
[424460319,1780927848000,-150.0,0.00027397,2]
[424460318,1780927848000,-150.0,0.00027397,2]
[424460321,1780927848000,-150.0,0.00027397,2]
[424460322,1780927848000,-150.0,0.00027397,2]
[424460323,1780927848000,-150.0,0.00027397,2]
[424460324,1780927848000,-150.0,0.00027397,2]
[424460328,1780927848000,-150.0,0.00027397,2]
[424460325,1780927848000,-150.0,0.00027397,2]
[424460329,1780927848000,-150.0,0.00027397,2]
[424460331,1780927848000,-150.0,0.00027397,2]
[424460330,1780927848000,-150.0,0.00027397,2]
[424460333,1780927848000,-150.0,0.00027397,2]
[424460334,1780927848000,-150.0,0.00027397,2]
[424460332,1780927848000,-150.0,0.00027397,2]
[424460336,1780927848000,-150.0,0.00027397,2]
[424460341,1780927848000,-150.0,0.00027397,2]
[424460342,1780927848000,-150.0,0.00027397,2]
[424460338,1780927848000,-150.0,0.00027397,2]
[424460340,1780927848000,-150.0,0.00027397,2]
[424460335,1780927848000,-150.0,0.00027397,2]
[424460337,1780927848000,-150.0,0.00027397,2]
[424460373,1780927848000,-2047.96,0.00027491,7]
[424460326,1780927848000,-150.0,0.00027397,2]
[424460371,1780927848000,-1413.85318,0.00027465,7]
[424460408,1780927848000,-151.0,0.00027531,7]
[424460411,1780927848000,-3000.0,0.00027562,7]
[424460409,1780927848000,-151.0,0.00027531,7]
[424460410,1780927848000,-260.0,0.00027532,2]
[424460416,1780927848000,-235.45202479,0.00027609,2]
[424460407,1780927848000,-151.0,0.00027531,7]
[424460418,1780927848000,-199.12254398,0.00027609,2]
[424460413,1780927848000,-555.61752586,0.00027562,7]
[424460414,1780927848000,-1199.25,0.00027593,2]
[424460412,1780927848000,-151.78089198,0.00027562,7]
[424460417,1780927848000,-164.48556867,0.00027609,2]
[424460415,1780927848000,-252.55872892,0.00027609,2]
[424460420,1780927848000,-272.0,0.0002762,3]
[424460427,1780927848000,-230.99,0.00027671,30]
[424460426,1780927848000,-230.99,0.00027671,14]
[424460428,1780927848000,-177.335,0.00027671,30]
[424460431,1780927848000,-4762.6424992,0.00027689,2]
[424460429,1780927848000,-18534.74391277,0.0002768,7]
[424460430,1780927848000,-25000.0,0.0002768,7]
[424460419,1780927848000,-163.86995474,0.00027611,2]
[424460423,1780927848000,-25000.0,0.00027654,7]
[424460422,1780927848000,-25000.0,0.00027645,7]
[424460369,1780927848000,-1413.85318,0.00027465,7]
[424460424,1780927848000,-25000.0,0.00027662,7]
[424460425,1780927848000,-25000.0,0.00027671,7]
[424460432,1780927848000,-3412.5841359,0.00027689,2]
[424460433,1780927848000,-151.0,0.0002769,60]
[424460406,1780927848000,-1005.699283,0.00027531,7]
[424460399,1780927848000,-151.0,0.00027531,7]
[424460421,1780927848000,-25000.0,0.00027636,7]
[424460398,1780927848000,-1825.983978,0.00027531,7]
[424460397,1780927848000,-151.0,0.00027531,7]
[424460372,1780927848000,-275.0,0.0002748,2]
[424460374,1780927848000,-248.81,0.00027499,30]
[424460378,1780927848000,-159.73404206,0.00027503,2]
[424460379,1780927848000,-168.64339247,0.00027503,2]
[424460377,1780927848000,-3333.0,0.000275,7]
[424460376,1780927848000,-500.0,0.000275,7]
[424460382,1780927848000,-167.7203002,0.00027503,2]
[424460383,1780927848000,-190.46391875,0.00027503,2]
[424460389,1780927848000,-5763.1504178,0.00027531,2]
[424460391,1780927848000,-811.803458,0.00027531,7]
[424460390,1780927848000,-191285.7906825,0.00027531,2]
[424460392,1780927848000,-811.803458,0.00027531,7]
[424460385,1780927848000,-159.77552654,0.00027503,2]
[424460375,1780927848000,-248.22,0.00027499,30]
[424460393,1780927848000,-151.0,0.00027531,7]
[424460386,1780927848000,-180.40419793,0.00027503,2]
[424460403,1780927848000,-1005.699283,0.00027531,7]
[424460405,1780927848000,-1005.699283,0.00027531,7]
[424460404,1780927848000,-1005.699283,0.00027531,7]
[424460402,1780927848000,-1825.983978,0.00027531,7]
[424460394,1780927848000,-811.803458,0.00027531,7]
[424460400,1780927848000,-1825.983978,0.00027531,7]
[424460384,1780927848000,-155.05455595,0.00027503,2]
[424460401,1780927848000,-1825.983978,0.00027531,7]
[424460387,1780927848000,-187.55345973,0.00027503,2]
[424460396,1780927848000,-811.803458,0.00027531,7]
[424460388,1780927848000,-554.2797674,0.00027531,2]
[424460395,1780927848000,-151.0,0.00027531,7]
[424460471,1780927849000,-177.335,0.00028219,30]
[424460467,1780927849000,-1199.25,0.0002818,2]
[424460468,1780927849000,-160.0,0.00028188,3]
[424460465,1780927849000,-151.53027978,0.00028164,30]
[424460466,1780927849000,-151.0,0.00028173,4]
[424460458,1780927849000,-1315.427406,0.00028028,7]
[424460469,1780927849000,-2281.0,0.0002819,15]
[424460470,1780927849000,-1571.88,0.000282,7]
[424460472,1780927849000,-3551.6,0.00028267,2]
[424460463,1780927849000,-160.0,0.00028105,3]
[424460464,1780927849000,-1000.0,0.00028157,7]
[424460480,1780927849000,-437.4,0.00028344,2]
[424460476,1780927849000,-151.0,0.00028306,2]
[424460475,1780927849000,-152.0,0.00028306,2]
[424460474,1780927849000,-450.0,0.00028306,2]
[424460477,1780927849000,-444.0,0.00028306,2]
[424460478,1780927849000,-174.71,0.0002831,2]
[424460479,1780927849000,-450.0,0.00028344,2]
[424460482,1780927849000,-506.04356219,0.00028356,60]
[424460493,1780927849000,-941.09,0.00028494,2]
[424460492,1780927849000,-2000.0,0.00028494,2]
[424460462,1780927849000,-2323.0,0.00028085,3]
[424460473,1780927849000,-544.0,0.00028306,7]
[424460459,1780927849000,-1315.427406,0.00028028,7]
[424460456,1780927849000,-1315.427406,0.00028028,7]
[424460460,1780927849000,-275.0,0.00028028,2]
[424460434,1780927849000,-11186.0,0.000277,10]
[424460436,1780927849000,-260.0,0.00027768,2]
[424460443,1780927849000,-750.0,0.00027938,2]
[424460442,1780927849000,-160.0,0.00027935,3]
[424460438,1780927849000,-500.0,0.00027792,2]
[424460439,1780927849000,-539.30694186,0.00027808,30]
[424460437,1780927849000,-1199.25,0.00027789,2]
[424460435,1780927849000,-439.0,0.000277,2]
[424460441,1780927849000,-150.0,0.00027857,7]
[424460440,1780927849000,-151.53027978,0.00027836,30]
[424460445,1780927849000,-1199.25,0.00027984,2]
[424460455,1780927849000,-260.250992,0.00028028,7]
[424460444,1780927849000,-200.0,0.00027955,2]
[424460446,1780927849000,-151.53027978,0.00028,30]
[424460450,1780927849000,-215.86427702,0.00028,7]
[424460448,1780927849000,-159.0,0.00028,30]
[424460452,1780927849000,-260.250992,0.00028028,7]
[424460449,1780927849000,-215.86427702,0.00028,10]
[424460453,1780927849000,-260.250992,0.00028028,7]
[424460447,1780927849000,-600.0,0.00028,2]
[424460454,1780927849000,-1315.427406,0.00028028,7]
[424460451,1780927849000,-1000.0,0.00028028,7]
[424460457,1780927849000,-260.250992,0.00028028,7]
[424460461,1780927849000,-505.57,0.00028031,2]
[424460481,1780927849000,-500.0,0.00028356,60]
[424460490,1780927849000,-2000.0,0.00028494,2]
[424460486,1780927849000,-7130.07,0.00028397,7]
[424460525,1780927849000,-2313.02,0.0002863,30]
[424460514,1780927849000,-1199.25,0.00028571,2]
[424460516,1780927849000,-151.0,0.00028573,2]
[424460521,1780927849000,-992.98,0.0002863,2]
[424460519,1780927849000,-3333.0,0.000286,7]
[424460518,1780927849000,-275.0,0.00028576,2]
[424460522,1780927849000,-9470.35,0.0002863,30]
[424460517,1780927849000,-160.0,0.00028575,3]
[424460524,1780927849000,-2743.67,0.0002863,30]
[424460520,1780927849000,-2723.09,0.0002863,30]
[424460523,1780927849000,-2331.52,0.0002863,30]
[424460530,1780927849000,-151.0,0.0002869,60]
[424460528,1780927849000,-992.98,0.00028661,7]
[424460529,1780927849000,-981.7,0.00028661,7]
[424460534,1780927849000,-151.53027978,0.00028712,30]
[424460533,1780927849000,-10307.2851,0.00028697,2]
[424460536,1780927849000,-992.98,0.00028725,2]
[424460532,1780927849000,-981.7,0.00028693,30]
[424460531,1780927849000,-992.98,0.00028693,30]
[424460527,1780927849000,-981.7,0.0002863,2]
[424460535,1780927849000,-2323.0,0.00028725,3]
[424460537,1780927849000,-981.7,0.00028725,2]
[424460483,1780927849000,-700.0,0.00028356,60]
[424460515,1780927849000,-535.0853628,0.00028573,2]
[424460513,1780927849000,-150.0,0.00028521,2]
[424460526,1780927849000,-9521.2,0.0002863,30]
[424460508,1780927849000,-1452634.59735225,0.000285,2]
[424460485,1780927849000,-1199.25,0.00028376,2]
[424460512,1780927849000,-1897.48,0.00028521,2]
[424460484,1780927849000,-151.53027978,0.00028356,30]
[424460487,1780927849000,-500.0,0.00028447,2]
[424460488,1780927849000,-47833.61395021,0.00028471,2]
[424460491,1780927849000,-2000.0,0.00028494,2]
[424460489,1780927849000,-168.37,0.00028493,2]
[424460497,1780927849000,-913.95,0.00028496,2]
[424460499,1780927849000,-199.955123,0.00028496,7]
[424460498,1780927849000,-199.955123,0.00028496,7]
[424460500,1780927849000,-1976.201679,0.00028496,7]
[424460496,1780927849000,-2000.0,0.00028496,2]
[424460494,1780927849000,-152.0,0.00028495,4]
[424460495,1780927849000,-2000.0,0.00028496,2]
[424460506,1780927849000,-1274.0,0.000285,2]
[424460509,1780927849000,-2000.0,0.00028518,2]
[424460510,1780927849000,-892.12,0.00028518,2]
[424460507,1780927849000,-10000.0,0.000285,2]
[424460505,1780927849000,-1976.201679,0.00028496,7]
[424460511,1780927849000,-151.53027978,0.00028521,30]
[424460503,1780927849000,-199.955123,0.00028496,7]
[424460502,1780927849000,-1976.201679,0.00028496,7]
[424460501,1780927849000,-199.955123,0.00028496,7]
[424460504,1780927849000,-1976.201679,0.00028496,7]
[424460577,1780927850000,-500.0,0.00028767,2]
[424460569,1780927850000,-500.0,0.00028767,2]
[424460565,1780927850000,-2832.607958,0.00028767,7]
[424460568,1780927850000,-500.0,0.00028767,2]
[424460570,1780927850000,-500.0,0.00028767,2]
[424460572,1780927850000,-500.0,0.00028767,2]
[424460574,1780927850000,-500.0,0.00028767,2]
[424460575,1780927850000,-500.0,0.00028767,2]
[424460573,1780927850000,-500.0,0.00028767,2]
[424460583,1780927850000,-2832.607958,0.00028767,7]
[424460581,1780927850000,-500.0,0.00028767,2]
[424460590,1780927850000,-500.0,0.00028767,2]
[424460594,1780927850000,-500.0,0.00028767,2]
[424460580,1780927850000,-500.0,0.00028767,2]
[424460576,1780927850000,-2832.607958,0.00028767,7]
[424460578,1780927850000,-500.0,0.00028767,2]
[424460585,1780927850000,-500.0,0.00028767,2]
[424460588,1780927850000,-500.0,0.00028767,2]
[424460587,1780927850000,-500.0,0.00028767,2]
[424460584,1780927850000,-500.0,0.00028767,2]
[424460586,1780927850000,-500.0,0.00028767,2]
[424460593,1780927850000,-500.0,0.00028767,2]
[424460591,1780927850000,-500.0,0.00028767,2]
[424460589,1780927850000,-500.0,0.00028767,2]
[424460566,1780927850000,-500.0,0.00028767,2]
[424460582,1780927850000,-500.0,0.00028767,2]
[424460567,1780927850000,-500.0,0.00028767,2]
[424460547,1780927850000,-2207.354033,0.00028767,7]
[424460562,1780927850000,-500.0,0.00028767,2]
[424460538,1780927850000,-200.0,0.00028725,2]
[424460540,1780927850000,-992.98,0.00028756,7]
[424460542,1780927850000,-207.4,0.00028766,2]
[424460541,1780927850000,-981.7,0.00028756,7]
[424460539,1780927850000,-3798.49,0.0002874,2]
[424460548,1780927850000,-212.019969,0.00028767,7]
[424460546,1780927850000,-212.019969,0.00028767,7]
[424460545,1780927850000,-1199.25,0.00028767,2]
[424460544,1780927850000,-532.22966768,0.00028767,30]
[424460543,1780927850000,-500.0,0.00028767,30]
[424460549,1780927850000,-2207.354033,0.00028767,7]
[424460551,1780927850000,-2207.354033,0.00028767,7]
[424460552,1780927850000,-2207.354033,0.00028767,7]
[424460554,1780927850000,-500.0,0.00028767,2]
[424460555,1780927850000,-500.0,0.00028767,2]
[424460556,1780927850000,-500.0,0.00028767,2]
[424460550,1780927850000,-212.019969,0.00028767,7]
[424460553,1780927850000,-212.019969,0.00028767,7]
[424460558,1780927850000,-500.0,0.00028767,2]
[424460557,1780927850000,-500.0,0.00028767,2]
[424460559,1780927850000,-500.0,0.00028767,2]
[424460571,1780927850000,-2832.607958,0.00028767,7]
[424460561,1780927850000,-500.0,0.00028767,2]
[424460560,1780927850000,-500.0,0.00028767,2]
[424460563,1780927850000,-500.0,0.00028767,2]
[424460564,1780927850000,-500.0,0.00028767,2]
[424460592,1780927850000,-500.0,0.00028767,2]
[424460579,1780927850000,-500.0,0.00028767,2]
[424460606,1780927850000,-500.0,0.00028767,2]
[424460624,1780927850000,-1302.26,0.000288,30]
[424460626,1780927850000,-181.24918255,0.00028801,2]
[424460628,1780927850000,-319.46808411,0.00028801,2]
[424460631,1780927850000,-221.80188873,0.00028801,2]
[424460641,1780927850000,-360.80839586,0.00028801,2]
[424460630,1780927850000,-337.28678494,0.00028801,2]
[424460632,1780927850000,-344.33464299,0.00028801,2]
[424460633,1780927850000,-366.24120942,0.00028801,2]
[424460634,1780927850000,-335.4406004,0.00028801,2]
[424460637,1780927850000,-319.55105307,0.00028801,2]
[424460636,1780927850000,-310.1091119,0.00028801,2]
[424460639,1780927850000,-241.33587135,0.00028801,2]
[424460627,1780927850000,-177.4472601,0.00028801,2]
[424460635,1780927850000,-380.92783749,0.00028801,2]
[424460642,1780927850000,-186.23628948,0.00028801,2]
[424460643,1780927850000,-375.10691946,0.00028801,2]
[424460647,1780927850000,-1044.42627825,0.00028843,7]
[424460650,1780927850000,-500.0,0.00028855,2]
[424460649,1780927850000,-981.7,0.00028852,7]
[424460644,1780927850000,-992.98,0.0002882,2]
[424460645,1780927850000,-981.7,0.0002882,2]
[424460648,1780927850000,-992.98,0.00028852,7]
[424460652,1780927850000,-260.0,0.00028871,2]
[424460651,1780927850000,-150.0,0.00028855,2]
[424460646,1780927850000,-2323.0,0.00028828,3]
[424460602,1780927850000,-500.0,0.00028767,2]
[424460640,1780927850000,-185.7734332,0.00028801,2]
[424460623,1780927850000,-9521.2,0.00028797,7]
[424460638,1780927850000,-180.89582192,0.00028801,2]
[424460625,1780927850000,-210.30544366,0.000288,28]
[424460629,1780927850000,-187.54961574,0.00028801,2]
[424460595,1780927850000,-500.0,0.00028767,2]
[424460597,1780927850000,-500.0,0.00028767,2]
[424460598,1780927850000,-500.0,0.00028767,2]
[424460603,1780927850000,-500.0,0.00028767,2]
[424460596,1780927850000,-500.0,0.00028767,2]
[424460600,1780927850000,-500.0,0.00028767,2]
[424460601,1780927850000,-500.0,0.00028767,2]
[424460604,1780927850000,-500.0,0.00028767,2]
[424460605,1780927850000,-500.0,0.00028767,2]
[424460608,1780927850000,-500.0,0.00028767,2]